[Event "44th Chess Olympiad Open 2022"]
[Site "Chennai"]
[Date "2022.07.31"]
[Round "3.8"]
[White "Shevchenko, Kirill"]
[Black "Quesada Perez, Luis Ernesto"]
[Result "1-0"]
[WhiteElo "2654"]
[BlackElo "2549"]
[Annotator "TA"]
[PlyCount "213"]
[EventDate "2022.??.??"]
[TimeControl "60"]

{[%evp 33,213,-59,-38,-52,25,25,25,0,0,0,17,17,35,36,43,35,35,35,50,50,44,45,
72,70,72,53,100,100,101,92,114,95,109,108,111,102,132,122,132,129,158,102,189,
187,175,190,301,123,150,137,145,144,152,77,174,187,287,280,385,107,118,118,112,
132,125,125,306,310,281,235,620,449,434,443,400,428,432,337,304,0,393,399,744,
736,646,547,611,594,914,887,786,747,691,677,574,424,424,424,424,424,374,264,
383,138,130,0,358,337,497,54,226,202,259,246,258,258,191,83,531,531,531,524,
531,524,524,524,524,524,592,549,2063,1481,5554,524,4244,4237,4237,4237,4222,
4161,4135,4135,4095,4095,4088,1010,12584,8744,8660,8627,8627,7868,6973,4467,
29972,29971,29974,29974,29974,29974,29973,29975,29975,29977,29977,29978,29979,
29980,29980,4129,29981,29982,29982,4137,29983,29984,29984,29985,29985,29986,
29987,29988]} 1. c4 {[%emt 0:00:02]} c6 {[%emt 0:00:47]} 2. Nf3 {[%emt 0:00:34]
} d5 {[%emt 0:00:08]} 3. e3 {[%emt 0:00:18]} Nf6 {[%emt 0:00:05]} 4. Nc3 {
[%emt 0:00:48]} Nbd7 {[%emt 0:00:13]} 5. d4 {[%emt 0:05:28]} e6 {[%emt 0:00:15]
} 6. Be2 {[%emt 0:03:28]} Bd6 {[%emt 0:00:11]} 7. O-O {[%emt 0:00:26]} O-O {
[%emt 0:00:10]} 8. b3 {[%emt 0:00:43]} b6 {[%emt 0:00:25]} 9. Bb2 {[%emt 0:00:
00]} Bb7 {[%emt 0:00:07]} 10. Qc2 {[%emt 0:00:14]} Qe7 {[%emt 0:01:53]} 11.
Rad1 {[%emt 0:01:22]} Rad8 {[%emt 0:04:06]} 12. Rfe1 {[%emt 0:00:28]} Rfe8 {
[%emt 0:03:10]} 13. Bf1 {[%emt 0:01:15]} c5 {[%emt 0:07:21]} 14. cxd5 {[%emt 0:
00:00]} exd5 {[%emt 0:00:21]} 15. Ne2 {[%emt 0:04:57]} Rc8 {[%emt 0:09:52]} 16.
dxc5 {[%emt 0:05:13]} Nxc5 {[%emt 0:00:50]} 17. Qb1 {[%emt 0:36:51]} Nce4 {
[%emt 0:00:52]} (17... Ng4 $5 {[%cal Rg4f2]} 18. Ned4 Ne4 $11) 18. Ned4 {
[%emt 0:15:51]} Bb4 {[%emt 0:07:38]} (18... Ng4 $1 $15 19. Bb5 (19. Nf5 Qc7 $15
) 19... g6 $1) 19. Re2 $1 $11 {[%emt 0:00:38]} g6 {[%emt 0:02:31]} 20. h3 {
[%emt 0:02:11]} Nc3 {[%emt 0:01:53]} 21. Bxc3 {[%emt 0:00:40]} Bxc3 {[%emt 0:
00:00]} 22. Nb5 {[%emt 0:05:34]} Ne4 {[%emt 0:01:12]} 23. Nxa7 {[%emt 0:02:15]}
Rc5 {[%emt 0:08:01]} 24. Rc2 {[%emt 0:00:39]} Bg7 {[%emt 0:07:02]} 25. Nb5 {
[%emt 0:02:57]} Bh6 {[%emt 0:02:20]} 26. Re1 {[%emt 0:02:08]} Rec8 {[%emt 0:00:
00]} 27. Nbd4 {[%emt 0:01:15]} Qf6 {[%emt 0:01:51]} 28. Bd3 {[%emt 0:00:41]}
Rxc2 {[%emt 0:05:28]} 29. Bxc2 {[%emt 0:01:07]} Bf8 {[%emt 0:00:43]} (29... Nc3
$14 30. Qb2 Ne4) 30. Bd3 $16 {[%emt 0:01:04]} Bd6 {[%emt 0:05:23]} 31. Nb5 {
[%emt 0:01:01]} Bb8 {[%emt 0:00:46]} 32. Qa1 {[%emt 0:00:13]} Qe7 {[%emt 0:00:
00]} 33. Rc1 {[%emt 0:00:44]} Rc5 {[%emt 0:00:30]} 34. a3 {[%emt 0:00:50]} Ba6
{[%emt 0:00:13]} 35. b4 {[%emt 0:00:31]} Rxc1+ {[%emt 0:02:49]} 36. Qxc1 {
[%emt 0:00:01]} Qf6 {[%emt 0:00:10] [#]} 37. Bf1 {[%emt 0:00:43]} (37. Nbd4
$142 $1 Bxd3 38. Qc8+ Kg7 39. Qxb8) 37... h5 {[%emt 0:00:53]} (37... Bxb5 $16
38. Bxb5 Bd6) 38. Nbd4 $18 {[%emt 0:00:22]} Bb7 {[%emt 0:00:38]} 39. Bb5 {
[%emt 0:00:25]} Be5 {[%emt 0:01:08]} (39... Qd8 $142 40. Bc6 Bxc6) 40. Bc6 {
[%emt 0:01:00]} (40. Nxe5 $18 {and White stays clearly on top.} Qxe5 41. a4)
40... Bxd4 {[%emt 0:02:36]} 41. Bxb7 {[%emt 0:02:23]} Bb2 {[%emt 0:00:02]} 42.
Qc8+ {[%emt 0:07:57]} Kg7 {[%emt 0:00:11]} 43. a4 {[%emt 0:06:37]} (43. Bxd5
$142 Nc3 44. Bc4) 43... Ba3 {[%emt 0:05:25]} (43... Qd6 $16 {was necessary.})
44. Bxd5 $18 {[%emt 0:05:04]} Qa1+ {[%emt 0:04:33]} (44... Nc3 $142) 45. Kh2
$18 {[%emt 0:00:01]} Nxf2 {[%emt 0:00:47] [#]} 46. Qc4 $2 {[%emt 0:10:00]} (46.
Bxf7 $1 $18 {Black must now prevent Qg8+.} Qf6 47. Qg8+ Kh6 48. Qf8+ Qg7 49.
Qe7) 46... Nd1 $16 {[%emt 0:09:08]} 47. Qf1 {[%emt 0:01:21]} (47. Bxf7 $6 Nxe3
48. Qf4 (48. Qe6 Nf1+ 49. Kh1 Ng3+ 50. Kh2 Nf1+ 51. Kh1 Ng3+ 52. Kh2 Nf1+ $11)
48... Nf1+ 49. Kh1 Ng3+ 50. Kh2 Nf1+ 51. Kh1 Ng3+ 52. Kh2 Nf1+ $11) 47... Qc1 {
[%emt 0:03:11]} 48. Ng5 $1 {[%emt 0:00:28]} (48. Ne5 $6 Qc7 49. Qxf7+ Qxf7 50.
Bxf7 Nxe3 $11) 48... Qc7+ {[%emt 0:17:22]} 49. Kh1 $1 {[%emt 0:00:00]} Nc3 $2 {
[%emt 0:00:54]} (49... Nxe3 $16 {was worth a try.} 50. Qa1+ Kf8) 50. Bxf7 $18 {
[%emt 0:00:12]} Qe5 {[%emt 0:00:26]} 51. Bb3 {[%emt 0:01:16]} Bxb4 $2 {[%emt 0:
04:37]} (51... Qxg5 52. Qf7+ Kh6 53. Qf8+ Kh7 54. Qg8+ Kh6 55. Qh8#) (51... Ne2
52. Qf7+ (52. Qxe2 Qxg5 53. Qd3 Bb2 $16) 52... Kh6) 52. Qf7+ {[%emt 0:00:31]}
Kh6 {[%emt 0:00:01]} 53. h4 $1 {[%emt 0:00:01]} Qg7 {[%emt 0:00:00]} 54. Qc4 {
[%emt 0:01:00]} (54. Qf4 Ne2 55. Nf7+ (55. Qxb4 Qa1+) 55... Kh7 56. Ng5+ (56.
Qxb4 Qa1+) 56... Kh6 57. Nf7+ (57. Qxb4 Qa1+) 57... Kh7 58. Ng5+ (58. Qxb4 Qa1+
) 58... Kh6 $14) 54... Be7 {[%emt 0:01:53]} 55. Nf7+ {[%emt 0:00:05]} Kh7 {
[%emt 0:00:07]} 56. Ng5+ {[%emt 0:00:04]} Kh6 $1 {[%emt 0:00:00]} 57. g3 {
[%emt 0:01:24]} Qf6 $2 {[%emt 0:01:20]} (57... Bc5 58. a5 Qf6) 58. Kg2 $18 {
[%emt 0:00:11]} Qg7 {[%emt 0:03:41]} 59. Qc7 {[%emt 0:00:35]} Qf6 {[%emt 0:03:
49]} 60. Qc8 {[%emt 0:00:07]} Bf8 {[%emt 0:00:34]} 61. Qc4 {[%emt 0:00:21]} Qg7
{[%emt 0:00:47]} 62. Ne6 {[%emt 0:00:55]} Qb7+ {[%emt 0:00:00]} 63. Kg1 {
[%emt 0:00:49]} Bg7 {[%emt 0:00:59]} 64. Nd8 {[%emt 0:00:34]} Qe7 {[%emt 0:01:
06]} 65. Nf7+ {[%emt 0:00:15]} Kh7 {[%emt 0:00:01]} 66. Ng5+ {[%emt 0:00:29]}
Kh6 {[%emt 0:00:01]} 67. Qd3 {[%emt 0:00:41]} Qf6 {[%emt 0:00:00]} (67... Qe8
$142 68. Ne6 (68. Bf7 Qc6 $16) 68... Nxa4) 68. Nf7+ $2 {[%emt 0:00:34]} (68.
Kg2 $18) 68... Kh7 $16 {[%emt 0:00:02]} 69. Ng5+ $2 {[%emt 0:00:02]} (69. Qc2
$16) 69... Kh6 $18 {[%emt 0:00:01]} 70. Kg2 {[%emt 0:00:00]} Qc6+ {[%emt 0:01:
13]} (70... Qe7 $142 71. Bg8 (71. Bc2 Qe8 $18) 71... Be5) 71. Kh2 $2 {[%emt 0:
00:06]} (71. e4 $18) 71... Qf6 $2 {[%emt 0:00:45]} ({Black should play} 71...
Nxa4 $14 72. Qf1 Nb2) 72. Kg1 $1 $18 {[%emt 0:00:26]} Qe7 {[%emt 0:00:46]} 73.
Bg8 {[%emt 0:01:01]} Be5 {[%emt 0:00:33]} 74. Kg2 $1 {[%emt 0:00:31]} Nxa4 {
[%emt 0:00:24] [#]} 75. Bf7 {[%emt 0:00:26]} (75. Ba2 $1 $18 {is the precise
move to win.} Nc3 76. Bb3) 75... Qd6 $2 {[%emt 0:00:23]} (75... Qf6 $16) 76.
Qxd6 $18 {[%emt 0:00:13]} Bxd6 {[%emt 0:00:01] [#]} 77. Be8 $1 {[%emt 0:00:04]}
Bc5 {[%emt 0:00:53]} 78. Bxa4 {[%emt 0:00:04]} Bxe3 {[%emt 0:00:04]} 79. Nf7+ {
[%emt 0:00:55]} Kg7 {[%emt 0:00:10]} 80. Nd6 {[%emt 0:00:09]} Bc1 {[%emt 0:00:
48]} 81. Be8 {[%emt 0:00:25]} Kf6 {[%emt 0:00:00]} 82. Nc4 {[%emt 0:01:02]} Kg7
{[%emt 0:00:26]} 83. Ne5 {[%emt 0:00:46]} (83. Nxb6 $142 Kf6 84. Kf3) 83... g5
{[%emt 0:00:01]} 84. Nd3 {[%emt 0:00:36]} Bd2 {[%emt 0:01:03]} 85. hxg5 {
[%emt 0:00:10]} Bxg5 {[%emt 0:00:02]} 86. Bxh5 {[%emt 0:00:04]} Be7 {[%emt 0:
00:15]} 87. Be8 {[%emt 0:00:11]} Kf6 {[%emt 0:00:00]} 88. Kf3 {[%emt 0:00:04]}
Bd6 {[%emt 0:00:09]} 89. Ba4 {[%emt 0:00:11]} b5 {[%emt 0:00:50]} 90. Bxb5 {
[%emt 0:00:04]} Kg5 {[%emt 0:01:29]} 91. Bc6 {[%emt 0:00:18]} Bb8 {[%emt 0:00:
06]} 92. Nf2 {[%emt 0:00:23]} Bc7 {[%emt 0:00:00]} 93. Bd7 {[%emt 0:00:08]}
Bxg3 {[%emt 0:00:26]} 94. Kxg3 {[%emt 0:00:04]} Kh5 {[%emt 0:00:11]} 95. Kf4 {
[%emt 0:00:12]} Kg6 {[%emt 0:00:01]} 96. Ng4 {[%emt 0:00:35]} Kg7 {[%emt 0:00:
19]} 97. Bf5 {[%emt 0:00:29]} Kf7 {[%emt 0:00:00]} 98. Ke5 {[%emt 0:00:02]} Kg7
{[%emt 0:00:14]} 99. Ke6 {[%emt 0:00:31]} Kg8 {[%emt 0:00:02]} 100. Kf6 {
[%emt 0:00:20]} Kh8 {[%emt 0:00:02]} 101. Ne5 {[%emt 0:00:05]} Kg8 102. Nf7 {
[%emt 0:00:06]} Kf8 {[%emt 0:00:10]} 103. Bh7 {[%emt 0:00:05]} Ke8 {[%emt 0:00:
00]} 104. Ne5 {[%emt 0:00:06]} Kd8 {[%emt 0:00:00]} 105. Ke6 {[%emt 0:00:03]}
Kc7 {[%emt 0:00:23]} 106. Nd7 {[%emt 0:00:04]} Kc6 {[%emt 0:00:11]} 107. Bd3 {
[%emt 0:01:49]} 1-0

[Event "44th Chess Olympiad Open 2022"]
[Site "Chennai"]
[Date "2022.07.31"]
[Round "3.8"]
[White "Albornoz Cabrera, Carlos Daniel"]
[Black "Volokitin, Andrei"]
[Result "1/2-1/2"]
[WhiteElo "2566"]
[BlackElo "2674"]
[Annotator "TA"]
[PlyCount "62"]
[EventDate "2022.??.??"]
[TimeControl "60"]

{[%evp 19,62,0,0,0,17,25,25,30,21,27,28,22,23,20,16,16,16,16,16,16,15,14,13,13,
13,13,13,13,13,17,14,19,19,20,29,6,6,10,8,0,0,0,0,0,0]} 1. e4 {[%emt 0:00:05]}
c5 {[%emt 0:00:19]} 2. Nf3 {[%emt 0:00:08]} d6 {[%emt 0:00:15]} 3. d4 {[%emt 0:
00:00]} cxd4 {[%emt 0:00:05]} 4. Nxd4 {[%emt 0:00:04]} Nf6 {[%emt 0:00:06]} 5.
Nc3 {[%emt 0:00:05]} a6 {[%emt 0:00:05]} 6. Bg5 {[%emt 0:00:08]} e6 {[%emt 0:
00:00]} 7. f4 {[%emt 0:00:18]} Qb6 {[%emt 0:00:13]} 8. Qd2 {[%emt 0:00:27]}
Qxb2 {[%emt 0:00:11]} 9. Rb1 {[%emt 0:00:05]} Qa3 {[%emt 0:00:04]} 10. f5 $1 {
[%emt 0:00:05] outshines the older 10.e5.} Nc6 {[%emt 0:00:09]} 11. fxe6 {
[%emt 0:00:22] B97: Sicilian Najdorf: Poisoned Pawn.} Bxe6 {[%emt 0:00:00]} 12.
Rxb7 {[%emt 0:01:01]} Nxd4 {[%emt 0:00:28]} 13. Qxd4 {[%emt 0:00:05] Strongly
threatening Nd5. White has an edge.} Be7 $1 {[%emt 0:00:11]} 14. Bc4 {[%emt 0:
00:19] [#] Hoping for 0-0.} Rc8 {[%emt 0:00:16]} 15. Nd5 {[%emt 0:00:00]} Bxd5
{[%emt 0:03:24]} 16. Bxd5 {[%emt 0:00:05]} Nxd5 {[%emt 0:00:46]} 17. Qxg7 {
[%emt 0:00:05]} Rf8 {[%emt 0:08:55][%cal Ye7f6] [#] And now ...Bf6! would win.}
18. exd5 {[%emt 0:00:57]} Bxg5 {[%emt 0:02:17]} 19. Qxg5 {[%emt 0:00:00][%csl
Gb7][%cal Rg5e7]} Qc3+ {[%emt 0:00:07]} 20. Kf2 {[%emt 0:01:44][%csl Gb7][%cal
Rg5e7]} Qxc2+ {[%emt 0:00:29]} 21. Kg3 {[%emt 0:00:14][%csl Gb7][%cal Rg5e7]}
Qe4 {[%emt 0:02:21] Inhibits Qe7+. ( -> ...Rc3+)} 22. Rf1 {[%emt 0:03:24] Kh3
is the strong threat.} ({Not} 22. Rc1 $2 Rxc1 23. Rb3 (23. Rb8+ $2 Kd7 $19)
23... Rc2 $19) 22... h6 $1 {[%emt 0:01:38]} 23. Qg7 {[%emt 0:00:00] White
wants to play h4.} Rc3+ $1 {[%emt 0:04:18]} 24. Rf3 {[%emt 0:00:00] Dancing on
a razor blade.} Rxf3+ {[%emt 0:01:07]} 25. gxf3 {[%emt 0:00:05] [#]} Qg6+ $146
{[%emt 0:07:25]} ({Predecessor:} 25... Qe1+ 26. Kh3 Qf1+ 27. Kh4 Qf2+ 28. Qg3
Qd2 29. f4 Kd8 30. a3 Re8 31. Rxf7 Qxd5 32. Qg7 Qe6 33. f5 Qe3 34. Kh5 Qf3+ 35.
Kg6 Kc8 36. Rf8 {1-0 (36) Epiney,F (2273)-Koteski,L (2116) IECG email 2003})
26. Qxg6 {[%emt 0:00:16]} fxg6 $11 {[%emt 0:00:02] KR-KR} 27. Rb6 {[%emt 0:01:
24]} (27. Rg7 $5 {[%cal Rg7g6]}) 27... Ke7 {[%emt 0:00:19] The position is
equal.} 28. Rxa6 {[%emt 0:00:10]} Rf5 {[%emt 0:00:05]} 29. Ra5 {[%emt 0:00:50]}
Rg5+ {[%emt 0:00:09]} 30. Kf4 {[%emt 0:05:51]} Rh5 {[%emt 0:00:00]} 31. Kg3 {
[%emt 0:05:38]} Rg5+ {[%emt 0:00:08] An even fight not without its subleties.
Weighted Error Value: White=0.02 (flawless) /Black=0.00 (flawless)} 1/2-1/2

[Event "44th Chess Olympiad Open 2022"]
[Site "Chennai"]
[Date "2022.07.31"]
[Round "3.8"]
[White "Ortiz Suarez, Isan Reynaldo"]
[Black "Onyshchuk, Volodymyr"]
[Result "1/2-1/2"]
[WhiteElo "2526"]
[BlackElo "2612"]
[Annotator "RC"]
[PlyCount "232"]
[EventDate "2022.??.??"]
[TimeControl "60"]

1. e4 {[%emt 0:00:02]} e5 {[%emt 0:00:33]} 2. Nf3 {[%emt 0:00:10]} Nc6 {
[%emt 0:00:07]} 3. Bb5 {[%emt 0:00:22]} Nf6 {[%emt 0:00:11]} 4. d3 {[%emt 0:00:
00]} Bc5 {[%emt 0:01:21]} 5. Bxc6 {[%emt 0:00:43]} dxc6 {[%emt 0:00:50]} 6. O-O
{[%emt 0:01:00]} Qe7 {[%emt 0:02:23]} 7. Bg5 {[%emt 0:01:57]} h6 {[%emt 0:00:
00]} 8. Bh4 {[%emt 0:00:09]} Bg4 {[%emt 0:08:53]} 9. Nbd2 {[%emt 0:03:26]}
O-O-O {[%emt 0:08:20]} 10. h3 {[%emt 0:03:42]} Bh5 {[%emt 0:00:59]} 11. Bg3 {
[%emt 0:04:27]} Nd7 {[%emt 0:03:27]} 12. c3 {[%emt 0:05:17]} Bd6 {[%emt 0:00:
00]} 13. Re1 {[%emt 0:08:59]} f6 {[%emt 0:11:37]} 14. Qc2 {[%emt 0:08:01]} g5 {
[%emt 0:08:44]} 15. d4 {[%emt 0:00:33]} g4 {[%emt 0:04:00]} 16. hxg4 {[%emt 0:
00:00]} Bxg4 {[%emt 0:00:05]} 17. Nh4 {[%emt 0:24:35]} Rdg8 {[%emt 0:09:23]}
18. Nc4 {[%emt 0:00:19]} h5 {[%emt 0:01:23]} 19. Qd3 {[%emt 0:04:23]} Rg5 {
[%emt 0:03:53]} 20. Qe3 {[%emt 0:03:31]} Rhg8 {[%emt 0:07:34]} 21. f4 {[%emt 0:
00:00]} exf4 {[%emt 0:02:54]} 22. Nxd6+ {[%emt 0:00:48]} cxd6 {[%emt 0:00:14]}
23. Bxf4 {[%emt 0:00:04]} R5g7 {[%emt 0:00:47]} 24. Bh6 {[%emt 0:02:16]} Rh7 {
[%emt 0:00:41]} 25. Rf1 {[%emt 0:00:41]} Qe6 {[%emt 0:01:25]} 26. Bf4 {[%emt 0:
00:00]} Nb6 {[%emt 0:08:06]} 27. b3 {[%emt 0:01:11]} d5 {[%emt 0:01:03]} 28.
Bh2 {[%emt 0:01:37]} dxe4 {[%emt 0:00:53]} 29. Qf4 {[%emt 0:00:47]} Kd8 {
[%emt 0:00:35]} 30. Rae1 {[%emt 0:02:56]} Nd5 {[%emt 0:02:45]} 31. Qb8+ {
[%emt 0:00:45]} Qc8 {[%emt 0:00:03]} 32. Qxa7 {[%emt 0:00:34]} f5 {[%emt 0:00:
00]} 33. c4 {[%emt 0:00:23]} Ne7 {[%emt 0:00:31]} 34. Bd6 {[%emt 0:02:27]} Ke8
{[%emt 0:01:58]} 35. Qc5 {[%emt 0:00:57]} Qe6 {[%emt 0:01:07]} 36. Bxe7 {
[%emt 0:01:54]} Rxe7 {[%emt 0:00:13]} 37. Nxf5 {[%emt 0:00:13]} Bxf5 {[%emt 0:
00:00]} 38. Qxf5 {[%emt 0:00:08]} h4 {[%emt 0:01:04]} 39. Qxe6 {[%emt 0:04:44]}
Rxe6 {[%emt 0:00:03]} 40. Rf4 {[%emt 0:00:30]} Reg6 {[%emt 0:00:39]} 41. Kh1 {
[%emt 0:36:29]} Rxg2 {[%emt 0:05:07]} 42. Rexe4+ {[%emt 0:00:00]} Kd8 {[%emt 0:
00:00]} 43. Rf8+ {[%emt 0:00:00]} Rxf8 {[%emt 0:05:13]} 44. Kxg2 {[%emt 0:00:
00]} h3+ {[%emt 0:00:05]} 45. Kxh3 {[%emt 0:00:00]} Rf2 {[%emt 0:00:05]} 46.
Kg4 {[%emt 0:00:00]} Rxa2 {[%emt 0:00:22]} 47. Kf5 {[%emt 0:00:00]} Kd7 {
[%emt 0:03:40]} 48. Ke5 {[%emt 0:00:00]} Rh2 {[%emt 0:11:36]} 49. Rg4 {[%emt 0:
00:00]} Re2+ {[%emt 0:00:12]} 50. Kf4 {[%emt 0:00:00]} b6 {[%emt 0:01:06]} 51.
Rg7+ {[%emt 0:00:00]} Kc8 {[%emt 0:01:37]} 52. Rg3 {[%emt 0:00:00]} Kd7 {
[%emt 0:00:16]} 53. Re3 {[%emt 0:00:00]} Rd2 {[%emt 0:00:40]} 54. Ke4 {[%emt 0:
00:00]} Rb2 {[%emt 0:01:24]} 55. Rh3 {[%emt 0:00:00]} Re2+ {[%emt 0:00:45]} 56.
Kd3 {[%emt 0:00:00]} Re7 {[%emt 0:01:34]} 57. Kc3 {[%emt 0:00:00]} Rg7 {
[%emt 0:00:17]} 58. Kb4 {[%emt 0:01:27]} Rg4 {[%emt 0:00:24]} 59. Rd3 {[%emt 0:
00:00]} Kc7 {[%emt 0:00:21]} 60. Ka4 {[%emt 0:01:30]} Rg5 {[%emt 0:00:51]} 61.
Kb4 {[%emt 0:00:54]} Rg4 {[%emt 0:00:24]} 62. Kc3 {[%emt 0:00:06]} Rh4 {
[%emt 0:00:35]} 63. Rg3 {[%emt 0:00:10]} Rh7 {[%emt 0:00:20]} 64. Rg5 {[%emt 0:
00:00]} Rh3+ {[%emt 0:00:22]} 65. Kb4 {[%emt 0:00:09]} Rh4 {[%emt 0:00:17]} 66.
d5 {[%emt 0:00:36]} cxd5 {[%emt 0:00:11]} 67. Rxd5 {[%emt 0:00:05]} Kc6 {
[%emt 0:00:30]} 68. Rg5 {[%emt 0:00:08]} Rh6 {[%emt 0:00:19]} 69. Ka4 {[%emt 0:
00:00]} Rh4 {[%emt 0:01:16]} 70. Rg6+ {[%emt 0:01:12]} Kc7 {[%emt 0:00:18]} 71.
Re6 {[%emt 0:01:06]} Rg4 {[%emt 0:00:35]} 72. Kb4 {[%emt 0:00:31]} Rg3 {
[%emt 0:00:18]} 73. Rh6 {[%emt 0:00:53]} Rf3 {[%emt 0:00:09]} 74. Ka4 {[%emt 0:
00:00]} Rf4 {[%emt 0:00:18]} 75. Kb4 {[%emt 0:00:25]} Rf3 {[%emt 0:00:09]} 76.
Rh4 {[%emt 0:00:03]} Kc6 {[%emt 0:00:41]} 77. Ka4 {[%emt 0:00:12]} Rf1 {
[%emt 0:00:27]} 78. Rh6+ {[%emt 0:00:27]} Kc7 {[%emt 0:00:46]} 79. b4 {[%emt 0:
00:00]} Rf5 {[%emt 0:00:09]} 80. Rh7+ {[%emt 0:00:12]} Kc8 {[%emt 0:00:29]} 81.
Kb3 {[%emt 0:00:47]} Rf3+ {[%emt 0:00:10]} 82. Kc2 {[%emt 0:00:03]} Rg3 {
[%emt 0:00:16]} 83. Re7 {[%emt 0:00:09]} Rh3 {[%emt 0:00:26]} 84. Kd2 {[%emt 0:
00:00]} Rb3 {[%emt 0:00:18]} 85. b5 {[%emt 0:00:04]} Rh3 {[%emt 0:00:30]} 86.
Re3 {[%emt 0:00:10]} Rh4 {[%emt 0:00:27]} 87. Kd3 {[%emt 0:00:04]} Kc7 {
[%emt 0:00:33]} 88. Re4 {[%emt 0:00:09]} Rh7 {[%emt 0:00:08]} 89. Kd4 {[%emt 0:
00:00]} Rd7+ {[%emt 0:00:20]} 90. Kc3 {[%emt 0:00:08]} Rh7 {[%emt 0:00:06]} 91.
Re5 {[%emt 0:01:07]} Rh4 {[%emt 0:00:10]} 92. Kd3 {[%emt 0:00:15]} Rh7 {
[%emt 0:00:44]} 93. Kd4 {[%emt 0:00:15]} Rd7+ {[%emt 0:00:14]} 94. Ke4 {
[%emt 0:00:03]} Rh7 {[%emt 0:00:11]} 95. Re6 {[%emt 0:00:13]} Rh4+ {[%emt 0:00:
00]} 96. Kd5 {[%emt 0:00:06]} Rh5+ {[%emt 0:00:08]} 97. Re5 {[%emt 0:00:07]}
Rh7 {[%emt 0:00:04]} 98. Kd4 {[%emt 0:01:05]} Rd7+ {[%emt 0:00:10]} 99. Kc3 {
[%emt 0:00:07]} Rh7 {[%emt 0:00:05]} 100. Kb4 {[%emt 0:00:08]} Rh4 {[%emt 0:00:
00]} 101. Re7+ {[%emt 0:00:38]} Kc8 {[%emt 0:00:10]} 102. Kc3 {[%emt 0:00:12]}
Rg4 {[%emt 0:00:31]} 103. Kd3 {[%emt 0:00:07]} Rh4 {[%emt 0:00:13]} 104. Re4 {
[%emt 0:00:06]} Rh7 {[%emt 0:00:23]} 105. Kd4 {[%emt 0:00:07]} Kc7 {[%emt 0:00:
00]} 106. Kd5 {[%emt 0:00:13]} Rd7+ {[%emt 0:00:58]} 107. Ke6 {[%emt 0:00:07]}
Rd1 {[%emt 0:00:10]} 108. Rf4 {[%emt 0:00:23]} Re1+ {[%emt 0:00:28]} 109. Kd5 {
[%emt 0:00:05]} Rd1+ {[%emt 0:00:13]} 110. Rd4 {[%emt 0:00:06]} Rh1 {[%emt 0:
00:00]} 111. Rf4 {[%emt 0:00:30]} Rd1+ {[%emt 0:00:08]} 112. Ke5 {[%emt 0:00:
00]} Re1+ {[%emt 0:00:13]} 113. Kd4 {[%emt 0:00:15]} Rd1+ {[%emt 0:00:12]} 114.
Kc3 {[%emt 0:00:05]} Rc1+ {[%emt 0:00:32]} 115. Kb3 {[%emt 0:00:20]} Rb1+ {
[%emt 0:00:06]} 116. Kc2 {[%emt 0:00:03]} Rh1 {[%emt 0:00:06]} 1/2-1/2

[Event "44th Chess Olympiad Open 2022"]
[Site "Chennai"]
[Date "2022.07.31"]
[Round "3.9"]
[White "Svane, Rasmus"]
[Black "Dragnev, Valentin"]
[Result "1-0"]
[WhiteElo "2649"]
[BlackElo "2557"]
[Annotator "RC"]
[PlyCount "99"]
[EventDate "2022.??.??"]
[TimeControl "60"]

1. d4 {[%emt 0:00:03]} Nf6 {[%emt 0:00:10]} 2. Nf3 {[%emt 0:00:26]} d5 {
[%emt 0:00:48]} 3. c4 {[%emt 0:00:06]} e6 {[%emt 0:00:08]} 4. g3 {[%emt 0:00:
00]} Be7 {[%emt 0:00:40]} 5. Bg2 {[%emt 0:00:52]} O-O {[%emt 0:00:09]} 6. O-O {
[%emt 0:02:45]} dxc4 {[%emt 0:00:07]} 7. Qc2 {[%emt 0:01:05]} b5 {[%emt 0:00:
00]} 8. a4 {[%emt 0:00:34]} Bb7 {[%emt 0:00:11]} 9. axb5 {[%emt 0:00:37]} a6 {
[%emt 0:00:08]} 10. Nc3 {[%emt 0:00:14]} axb5 {[%emt 0:00:43]} 11. Rxa8 {
[%emt 0:00:07]} Bxa8 {[%emt 0:00:06]} 12. Nxb5 {[%emt 0:00:08]} Bd5 {[%emt 0:
00:00]} 13. Bf4 {[%emt 0:00:46]} c5 {[%emt 0:01:52]} 14. dxc5 {[%emt 0:00:13]}
Qa5 {[%emt 0:00:33]} 15. Nc3 {[%emt 0:00:20]} Qxc5 {[%emt 0:01:37]} 16. Be3 {
[%emt 0:00:07]} Qa5 {[%emt 0:03:27]} 17. Nxd5 {[%emt 0:02:55]} Nxd5 {[%emt 0:
00:00]} 18. Bg5 {[%emt 0:01:35]} Bxg5 {[%emt 0:13:04]} 19. Nxg5 {[%emt 0:00:25]
} Nf6 {[%emt 0:00:06]} 20. Ne4 {[%emt 0:23:02]} Qe5 {[%emt 0:03:48]} 21. Nxf6+
{[%emt 0:00:39]} gxf6 {[%emt 0:20:53]} 22. Rd1 {[%emt 0:11:25]} Kg7 {[%emt 0:
00:00]} 23. e3 {[%emt 0:06:46]} Rc8 {[%emt 0:11:24]} 24. Rd4 {[%emt 0:00:25]}
Qa5 {[%emt 0:02:39]} 25. Rg4+ {[%emt 0:11:22]} Kh8 {[%emt 0:00:23]} 26. Rh4 {
[%emt 0:07:07]} f5 {[%emt 0:00:24]} 27. Qd1 {[%emt 0:02:38]} Qe5 {[%emt 0:00:
00]} 28. Bb7 {[%emt 0:04:58]} Rg8 {[%emt 0:07:11]} 29. Qd4 {[%emt 0:11:21]}
Qxd4 {[%emt 0:00:50]} 30. Rxd4 {[%emt 0:00:07]} Kg7 {[%emt 0:00:05]} 31. Rxc4 {
[%emt 0:00:30]} Nd7 {[%emt 0:00:12]} 32. Rc7 {[%emt 0:02:58]} Ne5 {[%emt 0:00:
00]} 33. Bc8 {[%emt 0:03:18]} Kf6 {[%emt 0:00:30]} 34. Kf1 {[%emt 0:03:18]} Rd8
{[%emt 0:02:29]} 35. Ke2 {[%emt 0:00:12]} Rd6 {[%emt 0:00:12]} 36. f4 {[%emt 0:
00:00]} Nd3 {[%emt 0:02:14]} 37. Bd7 {[%emt 0:02:41]} e5 {[%emt 0:07:46]} 38.
Be8 {[%emt 0:01:00]} e4 {[%emt 0:00:07]} 39. Rxf7+ {[%emt 0:00:55]} Ke6 {
[%emt 0:00:02]} 40. Rc7 {[%emt 0:00:45]} Nxb2 {[%emt 0:01:57]} 41. Rxh7 {
[%emt 0:09:51]} Rd8 {[%emt 0:00:50]} 42. Bb5 {[%emt 0:09:17]} Rb8 {[%emt 0:00:
00]} 43. Bd7+ {[%emt 0:01:16]} Kf6 {[%emt 0:00:02]} 44. Rh6+ {[%emt 0:00:38]}
Kg7 {[%emt 0:00:37]} 45. Rc6 {[%emt 0:01:02]} Nd3 {[%emt 0:00:31]} 46. Bxf5 {
[%emt 0:02:00]} Rb2+ {[%emt 0:00:21]} 47. Kf1 {[%emt 0:00:14]} Rb1+ {[%emt 0:
00:00]} 48. Kg2 {[%emt 0:00:16]} Rb2+ {[%emt 0:00:13]} 49. Kh3 {[%emt 0:00:32]}
Re2 {[%emt 0:00:08]} 50. Kg4 {[%emt 0:02:14]} 1-0